[Event "*** Titled Tuesday Blitz"]
[Site "Chess.com"]
[Date "2021.02.16"]
[Round "3"]
[White "bocah_sakit"]
[Black "AlexSuv"]
[Result "1-0"]
[WhiteElo "2848"]
[BlackElo "2451"]
[TimeControl "180+1"]
[EndTime "10:29:05 PST"]
[Termination "bocah_sakit won by resignation"]

1. e4 {[%clk 0:03:00.9]} 1... c5 {[%clk 0:02:57.1]} 2. Nf3 {[%clk 0:03:00.1]}
2... e6 {[%clk 0:02:56.6]} 3. d4 {[%clk 0:03:00.6]} 3... cxd4 {[%clk 0:02:57.5]}
4. Nxd4 {[%clk 0:03:01.5]} 4... Nc6 {[%clk 0:02:58]} 5. Nc3 {[%clk 0:02:59.3]}
5... Qc7 {[%clk 0:02:58.4]} 6. g3 {[%clk 0:02:59.7]} 6... a6 {[%clk 0:02:57.6]}
7. Bg2 {[%clk 0:02:59.8]} 7... Nf6 {[%clk 0:02:58]} 8. O-O {[%clk 0:03:00.1]}
8... Nxd4 {[%clk 0:02:58.2]} 9. Qxd4 {[%clk 0:03:01]} 9... Bc5 {[%clk
0:02:58.4]} 10. Bf4 {[%clk 0:03:01.6]} 10... d6 {[%clk 0:02:58.2]} 11. Qd2
{[%clk 0:03:01.2]} 11... h6 {[%clk 0:02:58.3]} 12. Rad1 {[%clk 0:03:00.2]} 12...
e5 {[%clk 0:02:58.3]} 13. Be3 {[%clk 0:03:00.1]} 13... Bb4 {[%clk 0:02:54.3]}
14. Nd5 {[%clk 0:02:47.3]} 14... Nxd5 {[%clk 0:02:50.1]} 15. Qxd5 {[%clk
0:02:48.2]} 15... Be6 {[%clk 0:02:50.4]} 16. Qd3 {[%clk 0:02:40]} 16... Bc4
{[%clk 0:02:49.9]} 17. Bb6 {[%clk 0:02:39.3]} 17... Qc6 {[%clk 0:02:45.7]} 18.
Qe3 {[%clk 0:02:37.1]} 18... Bxf1 {[%clk 0:02:44.6]} 19. Rxf1 {[%clk 0:02:37.5]}
19... Bc5 {[%clk 0:02:40.6]} 20. Bxc5 {[%clk 0:02:37.3]} 20... Qxc5 {[%clk
0:02:41.5]} 21. Qb3 {[%clk 0:02:36.5]} 21... Qc6 {[%clk 0:02:34.9]} 22. f4
{[%clk 0:02:31.7]} 22... exf4 {[%clk 0:02:31.5]} 23. gxf4 {[%clk 0:02:30.5]}
23... O-O {[%clk 0:02:31.5]} 24. Kh1 {[%clk 0:02:28.7]} 24... Qc7 {[%clk
0:02:24.6]} 25. f5 {[%clk 0:02:26.2]} 25... Rac8 {[%clk 0:02:20.2]} 26. c3
{[%clk 0:02:18.9]} 26... Qc4 {[%clk 0:02:00.7]} 27. Qc2 {[%clk 0:02:07.5]} 27...
f6 {[%clk 0:01:56.8]} 28. a3 {[%clk 0:02:04.9]} 28... Rfe8 {[%clk 0:01:48.9]}
29. Rd1 {[%clk 0:01:52.9]} 29... Kh8 {[%clk 0:01:45.4]} 30. h3 {[%clk
0:01:49.5]} 30... Qc5 {[%clk 0:01:40.7]} 31. Qd2 {[%clk 0:01:46.3]} 31... Rcd8
{[%clk 0:01:37]} 32. Qd3 {[%clk 0:01:38.3]} 32... Re5 {[%clk 0:01:32.5]} 33. b4
{[%clk 0:01:35.1]} 33... Qc6 {[%clk 0:01:30.2]} 34. c4 {[%clk 0:01:34.1]} 34...
b5 {[%clk 0:01:29.3]} 35. c5 {[%clk 0:01:28.3]} 35... Re7 {[%clk 0:00:43.9]} 36.
e5 {[%clk 0:01:25.1]} 36... Rxe5 {[%clk 0:00:44.8]} 37. Bxc6 {[%clk 0:01:23.9]}
1-0

[Event "*** Titled Tuesday Blitz"]
[Site "Chess.com"]
[Date "2021.02.16"]
[Round "3"]
[White "IMRosen"]
[Black "ajdemipopushi"]
[Result "1-0"]
[WhiteElo "2613"]
[BlackElo "2347"]
[TimeControl "180+1"]
[EndTime "10:29:09 PST"]
[Termination "IMRosen won by resignation"]

1. d4 {[%clk 0:03:00.1]} 1... Nf6 {[%clk 0:02:59.7]} 2. Bf4 {[%clk 0:03:00.6]}
2... c5 {[%clk 0:02:59.3]} 3. e3 {[%clk 0:03:00.8]} 3... b6 {[%clk 0:02:54.9]}
4. Qf3 {[%clk 0:03:00.1]} 4... d5 {[%clk 0:02:50.8]} 5. Nc3 {[%clk 0:02:59.7]}
5... a6 {[%clk 0:02:44.7]} 6. g4 {[%clk 0:02:56.7]} 6... h6 {[%clk 0:02:41.7]}
7. h3 {[%clk 0:02:51.1]} 7... e6 {[%clk 0:02:36.3]} 8. Qg3 {[%clk 0:02:48.1]}
8... Nc6 {[%clk 0:02:33]} 9. Bc7 {[%clk 0:02:43.7]} 9... Qd7 {[%clk 0:02:30.2]}
10. Bxb6 {[%clk 0:02:44.2]} 10... cxd4 {[%clk 0:02:22.6]} 11. Bxd4 {[%clk
0:02:36.2]} 11... Bd6 {[%clk 0:02:08.5]} 12. f4 {[%clk 0:02:25.4]} 12... Nxd4
{[%clk 0:02:01.9]} 13. exd4 {[%clk 0:02:26.3]} 13... Rb8 {[%clk 0:01:59.5]} 14.
Bd3 {[%clk 0:01:58.8]} 14... Rxb2 {[%clk 0:01:49.9]} 15. Nge2 {[%clk 0:01:59.3]}
15... Qc7 {[%clk 0:01:31.9]} 16. O-O {[%clk 0:01:55.8]} 16... g5 {[%clk
0:01:08.4]} 17. Qe3 {[%clk 0:01:55.9]} 17... gxf4 {[%clk 0:01:02.2]} 18. Nxf4
{[%clk 0:01:56]} 18... Qxc3 {[%clk 0:00:54.5]} 19. Bb5+ {[%clk 0:01:54.5]} 19...
Rxb5 {[%clk 0:00:48.4]} 20. Qxc3 {[%clk 0:01:54.5]} 20... Ke7 {[%clk 0:00:38.2]}
21. Rae1 {[%clk 0:01:49.8]} 21... Bd7 {[%clk 0:00:35.7]} 22. Qf3 {[%clk
0:01:45.4]} 22... Ne4 {[%clk 0:00:23]} 23. Nxd5+ {[%clk 0:01:35.9]} 23... exd5
{[%clk 0:00:20.5]} 24. Qf6+ {[%clk 0:01:31]} 24... Ke8 {[%clk 0:00:13.9]} 25.
Qxh8+ {[%clk 0:01:31.9]} 25... Ke7 {[%clk 0:00:13.8]} 26. Qf6+ {[%clk
0:01:30.4]} 26... Ke8 {[%clk 0:00:13.2]} 27. Qxd6 {[%clk 0:01:29.3]} 1-0

[Event "*** Titled Tuesday Blitz"]
[Site "Chess.com"]
[Date "2021.02.16"]
[Round "3"]
[White "DrVelja"]
[Black "Susal_De_Silva"]
[Result "1/2-1/2"]
[WhiteElo "2874"]
[BlackElo "2635"]
[TimeControl "180+1"]
[EndTime "10:29:17 PST"]
[Termination "Game drawn by repetition"]

1. e4 {[%clk 0:03:00.9]} 1... e5 {[%clk 0:03:00]} 2. Nf3 {[%clk 0:02:59.6]} 2...
Nc6 {[%clk 0:03:00.1]} 3. Bb5 {[%clk 0:02:59.2]} 3... a6 {[%clk 0:03:00.4]} 4.
Ba4 {[%clk 0:02:59.8]} 4... Nf6 {[%clk 0:03:00.6]} 5. O-O {[%clk 0:02:59.9]}
5... Be7 {[%clk 0:03:01]} 6. d3 {[%clk 0:02:56.7]} 6... b5 {[%clk 0:03:01.1]} 7.
Bb3 {[%clk 0:02:57.2]} 7... d6 {[%clk 0:03:02]} 8. a3 {[%clk 0:02:57.5]} 8...
O-O {[%clk 0:03:02.4]} 9. Nc3 {[%clk 0:02:58.1]} 9... Be6 {[%clk 0:03:02.3]} 10.
Nd5 {[%clk 0:02:58.1]} 10... Nd4 {[%clk 0:03:02.7]} 11. Nxd4 {[%clk 0:02:55.2]}
11... exd4 {[%clk 0:03:03.6]} 12. Nxf6+ {[%clk 0:02:55.8]} 12... Bxf6 {[%clk
0:03:04.5]} 13. Bxe6 {[%clk 0:02:56.4]} 13... fxe6 {[%clk 0:03:05.4]} 14. Qg4
{[%clk 0:02:56.3]} 14... Qe7 {[%clk 0:03:04.5]} 15. f4 {[%clk 0:02:56.5]} 15...
c5 {[%clk 0:03:03.8]} 16. a4 {[%clk 0:02:56.6]} 16... c4 {[%clk 0:02:50.4]} 17.
Bd2 {[%clk 0:02:53.4]} 17... cxd3 {[%clk 0:02:40.6]} 18. cxd3 {[%clk 0:02:54.3]}
18... Rfc8 {[%clk 0:02:37.1]} 19. axb5 {[%clk 0:02:43.8]} 19... axb5 {[%clk
0:02:36.4]} 20. Bb4 {[%clk 0:02:42.8]} 20... Qd7 {[%clk 0:01:57.8]} 21. b3
{[%clk 0:01:44.3]} 21... g6 {[%clk 0:01:30.9]} 22. Rxa8 {[%clk 0:01:21.4]} 22...
Rxa8 {[%clk 0:01:31.8]} 23. f5 {[%clk 0:01:19.6]} 23... e5 {[%clk 0:01:28]} 24.
Qg3 {[%clk 0:01:11.5]} 24... g5 {[%clk 0:01:23.6]} 25. h4 {[%clk 0:01:07.4]}
25... h6 {[%clk 0:01:22.8]} 26. hxg5 {[%clk 0:01:06.2]} 26... hxg5 {[%clk
0:01:23.7]} 27. Bd2 {[%clk 0:01:01.9]} 27... Ra2 {[%clk 0:01:19.7]} 28. Rf2
{[%clk 0:00:36.6]} 28... Ra1+ {[%clk 0:01:18.1]} 29. Rf1 {[%clk 0:00:32.6]}
29... Ra2 {[%clk 0:01:18.2]} 30. Rf2 {[%clk 0:00:25.1]} 30... Ra1+ {[%clk
0:01:17.6]} 31. Rf1 {[%clk 0:00:25.8]} 31... Ra2 {[%clk 0:01:18.1]} 1/2-1/2

[Event "*** Titled Tuesday Blitz"]
[Site "Chess.com"]
[Date "2021.02.16"]
[Round "3"]
[White "stepanosinovsky"]
[Black "KhamzinOlzhas"]
[Result "0-1"]
[WhiteElo "2279"]
[BlackElo "2525"]
[TimeControl "180+1"]
[EndTime "10:29:17 PST"]
[Termination "KhamzinOlzhas won on time"]

1. e4 {[%clk 0:03:00.9]} 1... c5 {[%clk 0:02:57.2]} 2. Nf3 {[%clk 0:03:00.5]}
2... d6 {[%clk 0:02:57]} 3. Bc4 {[%clk 0:02:59.7]} 3... Nf6 {[%clk 0:02:55.3]}
4. d3 {[%clk 0:02:59.7]} 4... Nc6 {[%clk 0:02:49.5]} 5. c3 {[%clk 0:02:58.8]}
5... e6 {[%clk 0:02:49.4]} 6. O-O {[%clk 0:02:58]} 6... Be7 {[%clk 0:02:49]} 7.
Re1 {[%clk 0:02:57.7]} 7... d5 {[%clk 0:02:46.6]} 8. exd5 {[%clk 0:02:53.5]}
8... exd5 {[%clk 0:02:47.5]} 9. Bb5 {[%clk 0:02:50.7]} 9... Bd7 {[%clk
0:02:47.7]} 10. d4 {[%clk 0:02:45.2]} 10... O-O {[%clk 0:02:45.5]} 11. Nbd2
{[%clk 0:02:24.5]} 11... cxd4 {[%clk 0:02:27.5]} 12. cxd4 {[%clk 0:02:14.9]}
12... Rc8 {[%clk 0:02:27]} 13. a3 {[%clk 0:02:01]} 13... Re8 {[%clk 0:02:23.7]}
14. h3 {[%clk 0:01:53]} 14... Qb6 {[%clk 0:02:21.7]} 15. Bd3 {[%clk 0:01:08.4]}
15... Nxd4 {[%clk 0:02:08.3]} 16. Nxd4 {[%clk 0:01:09.3]} 16... Qxd4 {[%clk
0:02:08.9]} 17. Nf3 {[%clk 0:01:09.4]} 17... Qb6 {[%clk 0:02:04.3]} 18. Be3
{[%clk 0:01:09.1]} 18... Bc5 {[%clk 0:02:03.1]} 19. Bxc5 {[%clk 0:01:02.4]}
19... Qxc5 {[%clk 0:02:04]} 20. Ne5 {[%clk 0:00:50.7]} 20... Bb5 {[%clk
0:01:49.9]} 21. Bf5 {[%clk 0:00:43.1]} 21... Rc7 {[%clk 0:01:45.9]} 22. Nf3
{[%clk 0:00:08.7]} 22... Rxe1+ {[%clk 0:01:34.7]} 23. Qxe1 {[%clk 0:00:09.6]}
23... g6 {[%clk 0:01:29.4]} 24. Qe5 {[%clk 0:00:02]} 24... Qe7 {[%clk
0:01:29.4]} 0-1

[Event "*** Titled Tuesday Blitz"]
[Site "Chess.com"]
[Date "2021.02.16"]
[Round "3"]
[White "goofypenguin96"]
[Black "bogcsab"]
[Result "1-0"]
[WhiteElo "2364"]
[BlackElo "2168"]
[TimeControl "180+1"]
[EndTime "10:29:20 PST"]
[Termination "goofypenguin96 won on time"]

1. d4 {[%clk 0:03:00.9]} 1... d6 {[%clk 0:03:00.9]} 2. c4 {[%clk 0:03:00.5]}
2... Nf6 {[%clk 0:03:00.1]} 3. Nc3 {[%clk 0:03:00]} 3... g6 {[%clk 0:03:00.2]}
4. e4 {[%clk 0:03:00.4]} 4... Bg7 {[%clk 0:03:00.3]} 5. f3 {[%clk 0:03:00.9]}
5... O-O {[%clk 0:02:59.8]} 6. Be3 {[%clk 0:03:01.5]} 6... Nbd7 {[%clk
0:03:00.4]} 7. Qd2 {[%clk 0:03:01.5]} 7... e5 {[%clk 0:03:00.6]} 8. Nge2 {[%clk
0:02:59.8]} 8... c6 {[%clk 0:02:58.8]} 9. d5 {[%clk 0:02:58.8]} 9... c5 {[%clk
0:02:56]} 10. g4 {[%clk 0:02:57]} 10... Ne8 {[%clk 0:02:50.8]} 11. h4 {[%clk
0:02:55.9]} 11... f5 {[%clk 0:02:50.5]} 12. gxf5 {[%clk 0:02:40.9]} 12... gxf5
{[%clk 0:02:48.1]} 13. h5 {[%clk 0:02:41.2]} 13... fxe4 {[%clk 0:02:36.6]} 14.
fxe4 {[%clk 0:02:35.9]} 14... Rf7 {[%clk 0:02:13.3]} 15. h6 {[%clk 0:02:30.8]}
15... Bf6 {[%clk 0:02:06.3]} 16. O-O-O {[%clk 0:02:25.6]} 16... Nf8 {[%clk
0:02:03.1]} 17. Ng3 {[%clk 0:02:21.4]} 17... Ng6 {[%clk 0:01:58.7]} 18. Be2
{[%clk 0:02:19.8]} 18... Kh8 {[%clk 0:01:14.1]} 19. Rdg1 {[%clk 0:02:18.7]}
19... a6 {[%clk 0:01:13.7]} 20. Bh5 {[%clk 0:02:11.7]} 20... b5 {[%clk
0:01:08.9]} 21. Nf5 {[%clk 0:02:11.4]} 21... Rb7 {[%clk 0:00:54.3]} 22. Bxg6
{[%clk 0:02:06.9]} 22... hxg6 {[%clk 0:00:53.9]} 23. Rxg6 {[%clk 0:02:07.8]}
23... bxc4 {[%clk 0:00:43]} 24. Rhg1 {[%clk 0:02:03.4]} 24... Rab8 {[%clk
0:00:43.2]} 25. Qg2 {[%clk 0:01:49.1]} 25... Bxf5 {[%clk 0:00:32.4]} 26. exf5
{[%clk 0:01:42.5]} 26... Nc7 {[%clk 0:00:20.9]} 27. h7 {[%clk 0:01:33.4]} 27...
Rxb2 {[%clk 0:00:03.5]} 28. Rg8+ {[%clk 0:01:32.3]} 1-0

[Event "*** Titled Tuesday Blitz"]
[Site "Chess.com"]
[Date "2021.02.16"]
[Round "3"]
[White "Andrakhanova"]
[Black "noblerone"]
[Result "1-0"]
[WhiteElo "2257"]
[BlackElo "2404"]
[TimeControl "180+1"]
[EndTime "10:29:23 PST"]
[Termination "Andrakhanova won by resignation"]

1. c4 {[%clk 0:02:58.4]} 1... c6 {[%clk 0:02:57]} 2. e4 {[%clk 0:02:57.9]} 2...
d5 {[%clk 0:02:56.6]} 3. exd5 {[%clk 0:02:58.8]} 3... cxd5 {[%clk 0:02:56.6]} 4.
d4 {[%clk 0:02:59]} 4... Nf6 {[%clk 0:02:54.7]} 5. Nc3 {[%clk 0:02:58.7]} 5...
e6 {[%clk 0:02:54.5]} 6. Nf3 {[%clk 0:02:58.5]} 6... Be7 {[%clk 0:02:53.7]} 7.
Bd3 {[%clk 0:02:58.6]} 7... dxc4 {[%clk 0:02:52.9]} 8. Bxc4 {[%clk 0:02:58.4]}
8... O-O {[%clk 0:02:49.4]} 9. O-O {[%clk 0:02:58.5]} 9... a6 {[%clk 0:02:49.3]}
10. Re1 {[%clk 0:02:58.6]} 10... b5 {[%clk 0:02:48.9]} 11. Bd3 {[%clk
0:02:58.4]} 11... Bb7 {[%clk 0:02:48.1]} 12. a3 {[%clk 0:02:58.2]} 12... Nbd7
{[%clk 0:02:22.7]} 13. Bf4 {[%clk 0:02:54.1]} 13... Nb6 {[%clk 0:02:14.5]} 14.
Rc1 {[%clk 0:02:38.5]} 14... Rc8 {[%clk 0:02:07.2]} 15. Bb1 {[%clk 0:02:36.1]}
15... Nbd5 {[%clk 0:02:01.4]} 16. Be5 {[%clk 0:02:33.2]} 16... Nxc3 {[%clk
0:01:55.5]} 17. bxc3 {[%clk 0:02:34.1]} 17... Bxa3 {[%clk 0:01:46.7]} 18. Rc2
{[%clk 0:02:27.3]} 18... Be7 {[%clk 0:01:22.6]} 19. Qd3 {[%clk 0:02:16.9]} 19...
g6 {[%clk 0:01:09.4]} 20. h4 {[%clk 0:02:16.3]} 20... Ng4 {[%clk 0:00:59.3]} 21.
h5 {[%clk 0:02:14.1]} 21... Qd5 {[%clk 0:00:47.8]} 22. hxg6 {[%clk 0:02:07.7]}
22... fxg6 {[%clk 0:00:42]} 23. Ba2 {[%clk 0:02:04.4]} 23... Rc4 {[%clk
0:00:24.1]} 24. Bg3 {[%clk 0:01:49.5]} 24... Rf5 {[%clk 0:00:16.8]} 25. Qe2
{[%clk 0:01:43.4]} 25... Bc8 {[%clk 0:00:13.6]} 26. Nd2 {[%clk 0:01:33.2]} 26...
Bf6 {[%clk 0:00:09.2]} 27. Nxc4 {[%clk 0:01:30.1]} 27... bxc4 {[%clk 0:00:09.2]}
28. Bxc4 {[%clk 0:01:31]} 28... Qd6 {[%clk 0:00:06.4]} 29. Bxd6 {[%clk 0:01:27]}
1-0

[Event "*** Titled Tuesday Blitz"]
[Site "Chess.com"]
[Date "2021.02.16"]
[Round "3"]
[White "remi04"]
[Black "12teen"]
[Result "0-1"]
[WhiteElo "2621"]
[BlackElo "2870"]
[TimeControl "180+1"]
[EndTime "10:29:26 PST"]
[Termination "12teen won by resignation"]

1. e4 {[%clk 0:03:00.9]} 1... e6 {[%clk 0:02:41.3]} 2. d4 {[%clk 0:02:59.6]}
2... a6 {[%clk 0:02:41.6]} 3. c4 {[%clk 0:02:58.1]} 3... b5 {[%clk 0:02:42.3]}
4. cxb5 {[%clk 0:02:51.2]} 4... axb5 {[%clk 0:02:43.2]} 5. Nf3 {[%clk
0:02:51.6]} 5... Bb7 {[%clk 0:02:43.1]} 6. Bd3 {[%clk 0:02:51.4]} 6... b4 {[%clk
0:02:43.5]} 7. O-O {[%clk 0:02:50.6]} 7... Nf6 {[%clk 0:02:44]} 8. Nbd2 {[%clk
0:02:49.6]} 8... d5 {[%clk 0:02:44.3]} 9. e5 {[%clk 0:02:49.4]} 9... Nfd7 {[%clk
0:02:44.9]} 10. Nb3 {[%clk 0:02:47.2]} 10... c5 {[%clk 0:02:40.6]} 11. dxc5
{[%clk 0:02:45.3]} 11... Nxc5 {[%clk 0:02:38.5]} 12. Nxc5 {[%clk 0:02:43.1]}
12... Bxc5 {[%clk 0:02:39.4]} 13. Bg5 {[%clk 0:02:37.3]} 13... Qb6 {[%clk
0:02:37.6]} 14. Qc2 {[%clk 0:02:11.4]} 14... h6 {[%clk 0:02:36]} 15. Bd2 {[%clk
0:02:10.1]} 15... Nd7 {[%clk 0:02:35.2]} 16. Kh1 {[%clk 0:01:55.7]} 16... O-O
{[%clk 0:02:33.8]} 17. Bf4 {[%clk 0:01:47.1]} 17... Rfc8 {[%clk 0:02:31.9]} 18.
Qe2 {[%clk 0:01:45.9]} 18... Bf8 {[%clk 0:02:32.5]} 19. h4 {[%clk 0:01:38.1]}
19... Ba6 {[%clk 0:02:31.7]} 20. g4 {[%clk 0:01:31.9]} 20... Bxd3 {[%clk
0:02:29.2]} 21. Qxd3 {[%clk 0:01:32.8]} 21... Rc4 {[%clk 0:02:29.3]} 22. Be3
{[%clk 0:01:29.1]} 22... Qc7 {[%clk 0:02:27.6]} 23. Bd4 {[%clk 0:01:27.1]} 23...
Bc5 {[%clk 0:02:23.1]} 24. Bxc5 {[%clk 0:00:52.6]} 24... Nxc5 {[%clk 0:02:24]}
25. Qe3 {[%clk 0:00:49.4]} 25... Re4 {[%clk 0:02:15.6]} 26. Qd2 {[%clk
0:00:49.4]} 26... Rxg4 {[%clk 0:02:11.2]} 27. Rg1 {[%clk 0:00:49.4]} 27... Ne4
{[%clk 0:02:04.5]} 28. Qe3 {[%clk 0:00:49.5]} 28... Rxg1+ {[%clk 0:02:02.6]} 29.
Rxg1 {[%clk 0:00:50.4]} 29... Kh8 {[%clk 0:01:56.4]} 30. Rg2 {[%clk 0:00:43.4]}
30... Rxa2 {[%clk 0:01:53.5]} 31. Qf4 {[%clk 0:00:37.2]} 31... Rxb2 {[%clk
0:01:44.6]} 32. Nd4 {[%clk 0:00:36.9]} 32... Rb1+ {[%clk 0:01:40.1]} 33. Kh2
{[%clk 0:00:36.6]} 33... Qc1 {[%clk 0:01:39.3]} 34. Qxc1 {[%clk 0:00:21.7]}
34... Rxc1 {[%clk 0:01:40.2]} 35. f3 {[%clk 0:00:22.3]} 35... Nc5 {[%clk
0:01:39.9]} 36. Rb2 {[%clk 0:00:13.7]} 36... Nd3 {[%clk 0:01:39.7]} 37. Rb3
{[%clk 0:00:14.1]} 37... Rc3 {[%clk 0:01:40.3]} 38. Rb1 {[%clk 0:00:09.9]} 38...
Rc4 {[%clk 0:01:40.7]} 0-1

[Event "*** Titled Tuesday Blitz"]
[Site "Chess.com"]
[Date "2021.02.16"]
[Round "3"]
[White "Spalir"]
[Black "dolynachess"]
[Result "1-0"]
[WhiteElo "2659"]
[BlackElo "2423"]
[TimeControl "180+1"]
[EndTime "10:29:28 PST"]
[Termination "Spalir won by resignation"]

1. e4 {[%clk 0:03:00.9]} 1... c5 {[%clk 0:02:59.8]} 2. Nf3 {[%clk 0:02:59.9]}
2... d6 {[%clk 0:03:00.2]} 3. d4 {[%clk 0:02:59.4]} 3... cxd4 {[%clk 0:03:01.1]}
4. Nxd4 {[%clk 0:02:58.8]} 4... Nf6 {[%clk 0:03:02]} 5. f3 {[%clk 0:02:57.6]}
5... g6 {[%clk 0:03:02.9]} 6. Nc3 {[%clk 0:02:54.3]} 6... Bg7 {[%clk 0:03:03.4]}
7. Be3 {[%clk 0:02:49.2]} 7... O-O {[%clk 0:03:03.4]} 8. Qd2 {[%clk 0:02:46.1]}
8... Nc6 {[%clk 0:03:03.8]} 9. Bc4 {[%clk 0:02:45.6]} 9... Bd7 {[%clk
0:03:02.7]} 10. O-O-O {[%clk 0:02:42.8]} 10... Qa5 {[%clk 0:03:03.1]} 11. Bb3
{[%clk 0:02:39.2]} 11... Rfc8 {[%clk 0:03:03.4]} 12. Kb1 {[%clk 0:02:37.7]}
12... Ne5 {[%clk 0:03:03.7]} 13. h4 {[%clk 0:02:36.5]} 13... Nc4 {[%clk
0:03:02.2]} 14. Bxc4 {[%clk 0:02:36.8]} 14... Rxc4 {[%clk 0:03:03.1]} 15. Nb3
{[%clk 0:02:35.4]} 15... Qe5 {[%clk 0:02:56]} 16. Bd4 {[%clk 0:02:30.2]} 16...
Qe6 {[%clk 0:02:54.1]} 17. g4 {[%clk 0:02:26.1]} 17... Rac8 {[%clk 0:02:49.8]}
18. h5 {[%clk 0:02:24.6]} 18... b5 {[%clk 0:02:46.7]} 19. hxg6 {[%clk
0:02:12.9]} 19... hxg6 {[%clk 0:02:46]} 20. g5 {[%clk 0:02:09.2]} 20... Nh5
{[%clk 0:02:26]} 21. Bxg7 {[%clk 0:02:06.7]} 21... Kxg7 {[%clk 0:02:25.9]} 22.
Nd4 {[%clk 0:01:58.4]} 22... Qe5 {[%clk 0:02:18.2]} 23. Rh4 {[%clk 0:01:58.9]}
23... b4 {[%clk 0:01:59.8]} 24. Nd5 {[%clk 0:01:57.3]} 24... a5 {[%clk
0:01:44.4]} 25. Qe3 {[%clk 0:01:39.8]} 25... Qg3 {[%clk 0:01:18.1]} 26. Rhh1
{[%clk 0:01:28.9]} 26... e5 {[%clk 0:00:52.6]} 27. Ne2 {[%clk 0:01:25]} 27...
Qg2 {[%clk 0:00:40.2]} 28. Rdg1 {[%clk 0:01:24.8]} 28... Nf4 {[%clk 0:00:31.2]}
29. Rxg2 {[%clk 0:01:20.8]} 29... Nxg2 {[%clk 0:00:31.4]} 30. Qf2 {[%clk
0:01:19.3]} 30... Rxc2 {[%clk 0:00:22.4]} 31. Qxg2 {[%clk 0:01:17.6]} 31... Bb5
{[%clk 0:00:22.4]} 32. Qh2 {[%clk 0:01:14.7]} 1-0

[Event "*** Titled Tuesday Blitz"]
[Site "Chess.com"]
[Date "2021.02.16"]
[Round "3"]
[White "Eloist"]
[Black "Maddie"]
[Result "1-0"]
[WhiteElo "2412"]
[BlackElo "2038"]
[TimeControl "180+1"]
[EndTime "10:29:28 PST"]
[Termination "Eloist won by resignation"]

1. e4 {[%clk 0:03:00.9]} 1... c6 {[%clk 0:02:59.5]} 2. Nf3 {[%clk 0:03:00.5]}
2... d5 {[%clk 0:03:00]} 3. Nc3 {[%clk 0:03:00.6]} 3... dxe4 {[%clk 0:02:59.9]}
4. Nxe4 {[%clk 0:03:00.6]} 4... Nd7 {[%clk 0:02:59.7]} 5. Qe2 {[%clk 0:02:59.1]}
5... e6 {[%clk 0:02:59.7]} 6. d4 {[%clk 0:02:57.7]} 6... Ngf6 {[%clk 0:02:59.7]}
7. Bf4 {[%clk 0:02:50.4]} 7... Nxe4 {[%clk 0:02:57.6]} 8. Qxe4 {[%clk
0:02:50.4]} 8... Nf6 {[%clk 0:02:58.1]} 9. Qd3 {[%clk 0:02:49]} 9... Be7 {[%clk
0:02:56.6]} 10. O-O-O {[%clk 0:02:47.2]} 10... Nd5 {[%clk 0:02:55.4]} 11. Bg3
{[%clk 0:02:34.9]} 11... Bd7 {[%clk 0:02:45.7]} 12. Kb1 {[%clk 0:02:34.5]} 12...
Qb6 {[%clk 0:02:41]} 13. c4 {[%clk 0:02:32.4]} 13... Nb4 {[%clk 0:02:38.2]} 14.
Qe4 {[%clk 0:02:09.2]} 14... Qa5 {[%clk 0:02:22.7]} 15. a3 {[%clk 0:02:08.3]}
15... Na6 {[%clk 0:02:18.2]} 16. Ne5 {[%clk 0:01:49.4]} 16... Bxa3 {[%clk
0:01:53.9]} 17. Nxd7 {[%clk 0:01:42.4]} 17... Qb4 {[%clk 0:01:36.7]} 18. Qc2
{[%clk 0:01:26.8]} 18... Kxd7 {[%clk 0:01:33.1]} 19. Be2 {[%clk 0:01:11.7]}
19... Qb6 {[%clk 0:01:24.6]} 20. c5 {[%clk 0:01:03.3]} 20... Qb4 {[%clk
0:00:57.3]} 21. Rd3 {[%clk 0:01:02.4]} 21... Bxb2 {[%clk 0:00:50.4]} 22. Rb3
{[%clk 0:00:57.9]} 22... Qa5 {[%clk 0:00:25.1]} 23. Qxb2 {[%clk 0:00:56.6]}
23... Ke7 {[%clk 0:00:18.4]} 24. Rxb7+ {[%clk 0:00:56.1]} 1-0

[Event "*** Titled Tuesday Blitz"]
[Site "Chess.com"]
[Date "2021.02.16"]
[Round "3"]
[White "RobertoJBM"]
[Black "JimmmyZhang"]
[Result "0-1"]
[WhiteElo "2708"]
[BlackElo "2447"]
[TimeControl "180+1"]
[EndTime "10:29:29 PST"]
[Termination "JimmmyZhang won by resignation"]

1. d4 {[%clk 0:03:00.9]} 1... Nf6 {[%clk 0:02:53.8]} 2. Nf3 {[%clk 0:02:59.9]}
2... g6 {[%clk 0:02:53.4]} 3. e3 {[%clk 0:02:59.2]} 3... Bg7 {[%clk 0:02:53.8]}
4. Be2 {[%clk 0:02:59]} 4... O-O {[%clk 0:02:54.3]} 5. O-O {[%clk 0:02:59.2]}
5... d6 {[%clk 0:02:53.6]} 6. c4 {[%clk 0:02:58.7]} 6... Nbd7 {[%clk 0:02:54]}
7. Nc3 {[%clk 0:02:58.1]} 7... c5 {[%clk 0:02:54.4]} 8. b3 {[%clk 0:02:54.7]}
8... cxd4 {[%clk 0:02:52.8]} 9. Nxd4 {[%clk 0:02:54.1]} 9... a6 {[%clk
0:02:53.2]} 10. Bb2 {[%clk 0:02:53.5]} 10... Qc7 {[%clk 0:02:52.8]} 11. Rc1
{[%clk 0:02:53.1]} 11... b6 {[%clk 0:02:52.8]} 12. Bf3 {[%clk 0:02:50.7]} 12...
Bb7 {[%clk 0:02:52.7]} 13. Bxb7 {[%clk 0:02:50.6]} 13... Qxb7 {[%clk 0:02:52.7]}
14. Qe2 {[%clk 0:02:51.1]} 14... Rac8 {[%clk 0:02:51.9]} 15. Rfd1 {[%clk
0:02:50.8]} 15... Rfd8 {[%clk 0:02:52.1]} 16. Nf3 {[%clk 0:02:46.5]} 16... Nc5
{[%clk 0:02:51.4]} 17. h3 {[%clk 0:02:31.4]} 17... Nce4 {[%clk 0:02:42.4]} 18.
Nxe4 {[%clk 0:02:30.7]} 18... Nxe4 {[%clk 0:02:41.3]} 19. Bxg7 {[%clk
0:02:31.3]} 19... Kxg7 {[%clk 0:02:41.8]} 20. Nd4 {[%clk 0:02:27.9]} 20... e5
{[%clk 0:02:34.6]} 21. Nf3 {[%clk 0:02:26.4]} 21... b5 {[%clk 0:02:31.3]} 22.
Qd3 {[%clk 0:01:40.1]} 22... b4 {[%clk 0:02:25.4]} 23. Rc2 {[%clk 0:01:31.7]}
23... Nc3 {[%clk 0:02:23.8]} 24. Re1 {[%clk 0:01:23.9]} 24... f6 {[%clk
0:02:19.4]} 25. Nd2 {[%clk 0:01:20.1]} 25... d5 {[%clk 0:02:17.2]} 26. cxd5
{[%clk 0:01:14.3]} 26... Rxd5 {[%clk 0:02:16.8]} 27. Qf1 {[%clk 0:01:13.4]}
27... Ne2+ {[%clk 0:02:15.8]} 28. Rxe2 {[%clk 0:01:10.5]} 28... Rxc2 {[%clk
0:02:15.9]} 29. Nc4 {[%clk 0:01:10.8]} 29... Rxe2 {[%clk 0:02:14.5]} 30. Qxe2
{[%clk 0:01:11.7]} 30... Qd7 {[%clk 0:02:14.6]} 31. Kh2 {[%clk 0:01:06.5]} 31...
e4 {[%clk 0:02:08.6]} 32. Qc2 {[%clk 0:01:03.7]} 32... Qc7+ {[%clk 0:02:04.9]}
33. g3 {[%clk 0:01:03.2]} 33... Rd3 {[%clk 0:01:59.7]} 34. h4 {[%clk 0:01:00.1]}
34... h5 {[%clk 0:01:58.6]} 35. Qb2 {[%clk 0:00:58.5]} 35... Qd7 {[%clk
0:01:52.1]} 36. Kg2 {[%clk 0:00:58.1]} 36... Qf5 {[%clk 0:01:50.1]} 37. Qe2
{[%clk 0:00:51.4]} 37... a5 {[%clk 0:01:48.8]} 38. Nb2 {[%clk 0:00:44.3]} 38...
Rc3 {[%clk 0:01:45.1]} 39. Nc4 {[%clk 0:00:41.8]} 39... a4 {[%clk 0:01:38.1]}
40. Nd6 {[%clk 0:00:35.7]} 40... Qf3+ {[%clk 0:01:32.7]} 41. Qxf3 {[%clk
0:00:35.9]} 41... exf3+ {[%clk 0:01:33.6]} 42. Kxf3 {[%clk 0:00:36.8]} 42...
axb3 {[%clk 0:01:34.2]} 43. axb3 {[%clk 0:00:36.2]} 43... Rxb3 {[%clk
0:01:34.7]} 0-1